[Event "Early-Titled-Tuesday-Blitz-February-06-2024"]
[Site "Chess.com"]
[Date "2024.02.06"]
[Round "4"]
[White "CarlosjPineror"]
[Black "Statham_01"]
[Result "0-1"]
[WhiteElo "2715"]
[BlackElo "2545"]
[TimeControl "180+1"]
[EndTime "8:37:57 PST"]
[Termination "Statham_01 won by checkmate"]

1. e4 {[%clk 0:02:56.1]} 1... e5 {[%clk 0:02:57.3]} 2. Nf3 {[%clk 0:02:55.9]}
2... Nf6 {[%clk 0:02:54.6]} 3. Nc3 {[%clk 0:02:54.9]} 3... Nc6 {[%clk
0:02:54.9]} 4. Bc4 {[%clk 0:02:51.6]} 4... Nxe4 {[%clk 0:02:54.7]} 5. Nxe4
{[%clk 0:02:45.3]} 5... d5 {[%clk 0:02:54.6]} 6. Bd3 {[%clk 0:02:38.6]} 6...
dxe4 {[%clk 0:02:54.6]} 7. Bxe4 {[%clk 0:02:39.5]} 7... Bd6 {[%clk 0:02:55.3]}
8. O-O {[%clk 0:02:32.3]} 8... O-O {[%clk 0:02:55.2]} 9. Bd5 {[%clk 0:02:30.9]}
9... Ne7 {[%clk 0:02:50.8]} 10. Bb3 {[%clk 0:02:30.3]} 10... e4 {[%clk
0:02:42.2]} 11. Ne1 {[%clk 0:02:23.6]} 11... Ng6 {[%clk 0:02:36.1]} 12. d3
{[%clk 0:02:18.3]} 12... Qh4 {[%clk 0:02:25.2]} 13. g3 {[%clk 0:02:18.1]} 13...
Qh3 {[%clk 0:02:23.9]} 14. dxe4 {[%clk 0:02:15]} 14... Bg4 {[%clk 0:02:22.4]}
15. Qd3 {[%clk 0:01:58.7]} 15... Rad8 {[%clk 0:02:12.6]} 16. Qe3 {[%clk
0:01:32.8]} 16... b6 {[%clk 0:01:51.9]} 17. Nd3 {[%clk 0:00:20.1]} 17... Nh4
{[%clk 0:01:40.9]} 18. Ne1 {[%clk 0:00:19.7]} 18... Bf4 {[%clk 0:01:11.2]} 19.
Qxf4 {[%clk 0:00:14.1]} 19... Rd1 {[%clk 0:01:11.5]} 20. Be3 {[%clk 0:00:12.8]}
20... Rxe1 {[%clk 0:01:05.2]} 21. Raxe1 {[%clk 0:00:07.6]} 21... Qg2# {[%clk
0:01:05]} 0-1

[Event "Early-Titled-Tuesday-Blitz-February-06-2024"]
[Site "Chess.com"]
[Date "2024.02.06"]
[Round "4"]
[White "gpsji27"]
[Black "Herman-NY"]
[Result "0-1"]
[WhiteElo "2317"]
[BlackElo "2502"]
[TimeControl "180+1"]
[EndTime "8:37:58 PST"]
[Termination "Herman-NY won by checkmate"]

1. d4 {[%clk 0:02:57.8]} 1... Nf6 {[%clk 0:03:00]} 2. Nf3 {[%clk 0:02:58.4]}
2... g6 {[%clk 0:03:00.4]} 3. Bg5 {[%clk 0:02:58.6]} 3... Bg7 {[%clk 0:03:00.6]}
4. c4 {[%clk 0:02:58.5]} 4... d6 {[%clk 0:02:59.9]} 5. Nc3 {[%clk 0:02:55.7]}
5... h6 {[%clk 0:02:58.7]} 6. Bh4 {[%clk 0:02:55.2]} 6... O-O {[%clk 0:02:52.6]}
7. e3 {[%clk 0:02:55]} 7... c5 {[%clk 0:02:48.2]} 8. Be2 {[%clk 0:02:54.3]} 8...
g5 {[%clk 0:02:36.4]} 9. Bg3 {[%clk 0:02:49.9]} 9... Nh5 {[%clk 0:02:27.9]} 10.
d5 {[%clk 0:02:39.3]} 10... Nd7 {[%clk 0:01:59.3]} 11. Nd2 {[%clk 0:02:20.2]}
11... Nxg3 {[%clk 0:01:44.3]} 12. hxg3 {[%clk 0:02:21]} 12... Nf6 {[%clk
0:01:20.7]} 13. Qc2 {[%clk 0:02:07.9]} 13... e6 {[%clk 0:01:20.2]} 14. dxe6
{[%clk 0:02:01.1]} 14... Bxe6 {[%clk 0:01:18.4]} 15. Bf3 {[%clk 0:01:57.7]}
15... Rb8 {[%clk 0:01:15.9]} 16. O-O-O {[%clk 0:01:54.3]} 16... b5 {[%clk
0:00:52.2]} 17. Nxb5 {[%clk 0:01:49.4]} 17... d5 {[%clk 0:00:41.1]} 18. cxd5
{[%clk 0:01:33]} 18... Nxd5 {[%clk 0:00:34.3]} 19. Nc3 {[%clk 0:00:51.3]} 19...
Nb4 {[%clk 0:00:32.4]} 20. Qa4 {[%clk 0:00:44.6]} 20... Nd3+ {[%clk 0:00:32.3]}
21. Kc2 {[%clk 0:00:42.7]} 21... Rxb2# {[%clk 0:00:32.6]} 0-1

[Event "Early-Titled-Tuesday-Blitz-February-06-2024"]
[Site "Chess.com"]
[Date "2024.02.06"]
[Round "4"]
[White "KetiTsatsalashvili"]
[Black "pfalcon1949"]
[Result "1-0"]
[WhiteElo "2429"]
[BlackElo "1956"]
[TimeControl "180+1"]
[EndTime "8:37:58 PST"]
[Termination "KetiTsatsalashvili won on time"]

1. d4 {[%clk 0:02:58.3]} 1... Nf6 {[%clk 0:02:57]} 2. Nf3 {[%clk 0:02:58.2]}
2... d5 {[%clk 0:02:55.5]} 3. e3 {[%clk 0:02:57.4]} 3... e6 {[%clk 0:02:51]} 4.
Bd3 {[%clk 0:02:56.8]} 4... Be7 {[%clk 0:02:50.4]} 5. O-O {[%clk 0:02:56.3]}
5... O-O {[%clk 0:02:49.1]} 6. b3 {[%clk 0:02:56.1]} 6... c5 {[%clk 0:02:48]} 7.
Bb2 {[%clk 0:02:56.1]} 7... cxd4 {[%clk 0:02:47.2]} 8. exd4 {[%clk 0:02:55.7]}
8... Nc6 {[%clk 0:02:45.9]} 9. Nbd2 {[%clk 0:02:55.6]} 9... Bd7 {[%clk 0:02:40]}
10. Ne5 {[%clk 0:02:55.2]} 10... Rc8 {[%clk 0:02:39.6]} 11. a3 {[%clk
0:02:51.9]} 11... Qc7 {[%clk 0:02:35.4]} 12. Qe2 {[%clk 0:02:51.9]} 12... Rfd8
{[%clk 0:02:34.5]} 13. f4 {[%clk 0:02:51.5]} 13... Be8 {[%clk 0:02:33.2]} 14.
Rf3 {[%clk 0:02:49.8]} 14... Qb6 {[%clk 0:02:22.9]} 15. c3 {[%clk 0:02:43.4]}
15... Ne4 {[%clk 0:02:07.9]} 16. Nxe4 {[%clk 0:02:42.1]} 16... dxe4 {[%clk
0:02:07.8]} 17. Qxe4 {[%clk 0:02:41.6]} 17... g6 {[%clk 0:02:04.2]} 18. b4
{[%clk 0:02:31.5]} 18... f5 {[%clk 0:01:52.7]} 19. Qe2 {[%clk 0:02:28.5]} 19...
Nxe5 {[%clk 0:01:52.2]} 20. fxe5 {[%clk 0:02:18.9]} 20... Bc6 {[%clk 0:01:47]}
21. Rh3 {[%clk 0:02:13.3]} 21... a6 {[%clk 0:01:40]} 22. Qe3 {[%clk 0:02:11.1]}
22... Bf8 {[%clk 0:01:34.2]} 23. Bc2 {[%clk 0:02:07.9]} 23... Bg7 {[%clk
0:01:30.7]} 24. Bb3 {[%clk 0:02:06.3]} 24... Bd5 {[%clk 0:01:29.2]} 25. Bxd5
{[%clk 0:02:06.4]} 25... Rxd5 {[%clk 0:01:28.2]} 26. Kh1 {[%clk 0:01:51.5]}
26... Rcd8 {[%clk 0:01:22.2]} 27. Qe2 {[%clk 0:01:49.6]} 27... Qb5 {[%clk
0:01:00]} 28. c4 {[%clk 0:01:44.5]} 28... Rxe5 {[%clk 0:00:22.3]} 29. dxe5
{[%clk 0:01:42.6]} 29... Qc6 {[%clk 0:00:19.8]} 30. Rd3 {[%clk 0:01:35.9]} 30...
Rc8 {[%clk 0:00:19]} 31. Rad1 {[%clk 0:01:33.7]} 31... h6 {[%clk 0:00:12.3]} 32.
c5 {[%clk 0:01:33.1]} 32... Kh7 {[%clk 0:00:08.4]} 33. h3 {[%clk 0:01:32.9]} 1-0

[Event "Early-Titled-Tuesday-Blitz-February-06-2024"]
[Site "Chess.com"]
[Date "2024.02.06"]
[Round "4"]
[White "Sadykov_Ramil"]
[Black "Iball95"]
[Result "0-1"]
[WhiteElo "2602"]
[BlackElo "2918"]
[TimeControl "180+1"]
[EndTime "8:37:59 PST"]
[Termination "Iball95 won on time"]

1. e4 {[%clk 0:02:42]} 1... c5 {[%clk 0:02:58.9]} 2. Nf3 {[%clk 0:02:41.1]} 2...
e6 {[%clk 0:02:59]} 3. c4 {[%clk 0:02:40.9]} 3... Nc6 {[%clk 0:02:57.8]} 4. Nc3
{[%clk 0:02:40.3]} 4... Nf6 {[%clk 0:02:58.2]} 5. Be2 {[%clk 0:02:39.2]} 5... d5
{[%clk 0:02:58.5]} 6. exd5 {[%clk 0:02:37]} 6... exd5 {[%clk 0:02:59.4]} 7. d4
{[%clk 0:02:37.6]} 7... cxd4 {[%clk 0:02:59.3]} 8. Nxd4 {[%clk 0:02:35.9]} 8...
Bc5 {[%clk 0:02:59.8]} 9. Nxc6 {[%clk 0:01:58.4]} 9... bxc6 {[%clk 0:03:00.7]}
10. cxd5 {[%clk 0:01:58]} 10... cxd5 {[%clk 0:03:00.4]} 11. b4 {[%clk
0:01:54.4]} 11... Bb6 {[%clk 0:02:51.4]} 12. O-O {[%clk 0:01:43.6]} 12... O-O
{[%clk 0:02:51.6]} 13. Bg5 {[%clk 0:01:35.6]} 13... Be6 {[%clk 0:02:17]} 14.
Bxf6 {[%clk 0:01:20.7]} 14... Qxf6 {[%clk 0:02:17.9]} 15. Nxd5 {[%clk
0:01:20.4]} 15... Bxd5 {[%clk 0:02:17.7]} 16. Qxd5 {[%clk 0:01:21.3]} 16... Rad8
{[%clk 0:02:17.1]} 17. Qf3 {[%clk 0:01:16.3]} 17... Qb2 {[%clk 0:02:16.1]} 18.
Rfb1 {[%clk 0:01:03.5]} 18... Qd4 {[%clk 0:01:59]} 19. a4 {[%clk 0:00:48.8]}
19... Rd6 {[%clk 0:01:55.8]} 20. Rd1 {[%clk 0:00:43.7]} 20... Qxb4 {[%clk
0:01:55.1]} 21. Rxd6 {[%clk 0:00:39.2]} 21... Qxd6 {[%clk 0:01:56]} 22. a5
{[%clk 0:00:38.6]} 22... Qe5 {[%clk 0:01:49.1]} 23. Rd1 {[%clk 0:00:11.1]} 23...
Qxa5 {[%clk 0:01:46.6]} 24. Bc4 {[%clk 0:00:09.7]} 24... Qc5 {[%clk 0:01:42.7]}
25. Bb3 {[%clk 0:00:07.5]} 25... Qe5 {[%clk 0:01:37.8]} 26. g3 {[%clk
0:00:06.8]} 26... Qe7 {[%clk 0:01:35.2]} 27. Qf5 {[%clk 0:00:06.3]} 27... g6
{[%clk 0:01:35]} 28. Qd7 {[%clk 0:00:05.9]} 28... Qf6 {[%clk 0:01:34]} 29. Rd2
{[%clk 0:00:05]} 29... Rd8 {[%clk 0:01:34.1]} 0-1

[Event "Early-Titled-Tuesday-Blitz-February-06-2024"]
[Site "Chess.com"]
[Date "2024.02.06"]
[Round "4"]
[White "Franmu14"]
[Black "OparinGrigoriy"]
[Result "1-0"]
[WhiteElo "2759"]
[BlackElo "2984"]
[TimeControl "180+1"]
[EndTime "8:38:00 PST"]
[Termination "Franmu14 won by checkmate"]

1. e4 {[%clk 0:03:00.9]} 1... a6 {[%clk 0:03:00.9]} 2. d4 {[%clk 0:03:00]} 2...
c6 {[%clk 0:03:01.6]} 3. Nc3 {[%clk 0:03:00]} 3... d5 {[%clk 0:03:02]} 4. exd5
{[%clk 0:03:00.2]} 4... cxd5 {[%clk 0:03:02.9]} 5. Bf4 {[%clk 0:03:00.4]} 5...
Nc6 {[%clk 0:03:02.7]} 6. h3 {[%clk 0:03:00.3]} 6... Nf6 {[%clk 0:03:02.3]} 7.
g4 {[%clk 0:03:00.2]} 7... e6 {[%clk 0:02:56.9]} 8. Nge2 {[%clk 0:02:58.3]} 8...
Qb6 {[%clk 0:02:55.5]} 9. Bg2 {[%clk 0:02:56.7]} 9... Qxb2 {[%clk 0:02:51.3]}
10. O-O {[%clk 0:02:56.4]} 10... Qb6 {[%clk 0:02:49.6]} 11. Rb1 {[%clk
0:02:55.5]} 11... Qd8 {[%clk 0:02:49.8]} 12. Ng3 {[%clk 0:02:50.8]} 12... Bd6
{[%clk 0:02:48.8]} 13. Bxd6 {[%clk 0:02:26.6]} 13... Qxd6 {[%clk 0:02:49.7]} 14.
g5 {[%clk 0:02:26.8]} 14... Ng8 {[%clk 0:02:46]} 15. f4 {[%clk 0:02:20.1]} 15...
Nge7 {[%clk 0:02:43.5]} 16. Nce2 {[%clk 0:02:17.3]} 16... g6 {[%clk 0:02:40.5]}
17. a4 {[%clk 0:02:09.5]} 17... h6 {[%clk 0:02:32.1]} 18. h4 {[%clk 0:02:06.3]}
18... hxg5 {[%clk 0:02:31.7]} 19. hxg5 {[%clk 0:02:01.9]} 19... Qc7 {[%clk
0:02:25.8]} 20. Qd3 {[%clk 0:01:58.6]} 20... Bd7 {[%clk 0:02:26]} 21. c4 {[%clk
0:01:57.3]} 21... Na5 {[%clk 0:02:13.3]} 22. cxd5 {[%clk 0:01:47.5]} 22... Nxd5
{[%clk 0:02:14.2]} 23. Bxd5 {[%clk 0:01:30.3]} 23... exd5 {[%clk 0:02:14.3]} 24.
Qe3+ {[%clk 0:01:30.7]} 24... Kf8 {[%clk 0:02:07.6]} 25. f5 {[%clk 0:01:15.7]}
25... Nc4 {[%clk 0:02:07.3]} 26. Qf4 {[%clk 0:00:56.1]} 26... Qxf4 {[%clk
0:02:04]} 27. Nxf4 {[%clk 0:00:57]} 27... Nd2 {[%clk 0:01:42.2]} 28. Rxb7 {[%clk
0:00:55]} 28... Nxf1 {[%clk 0:01:40.2]} 29. Kxf1 {[%clk 0:00:50.3]} 29... Bxf5
{[%clk 0:01:37.5]} 30. Nxf5 {[%clk 0:00:48.9]} 30... gxf5 {[%clk 0:01:38.4]} 31.
g6 {[%clk 0:00:48]} 31... Rh4 {[%clk 0:01:27.5]} 32. Rxf7+ {[%clk 0:00:47]}
32... Kg8 {[%clk 0:01:27.6]} 33. Nxd5 {[%clk 0:00:44]} 33... Kh8 {[%clk
0:01:11.1]} 34. Nf6 {[%clk 0:00:30]} 34... Rg8 {[%clk 0:01:11.2]} 35. g7+ {[%clk
0:00:24.3]} 35... Rxg7 {[%clk 0:01:11.5]} 36. Rf8+ {[%clk 0:00:25]} 36... Rg8
{[%clk 0:01:12.4]} 37. Rxg8# {[%clk 0:00:25.4]} 1-0

[Event "Early-Titled-Tuesday-Blitz-February-06-2024"]
[Site "Chess.com"]
[Date "2024.02.06"]
[Round "4"]
[White "adotand"]
[Black "marcodobrikov"]
[Result "1-0"]
[WhiteElo "2898"]
[BlackElo "2682"]
[TimeControl "180+1"]
[EndTime "8:38:06 PST"]
[Termination "adotand won by resignation"]

1. e4 {[%clk 0:03:00.9]} 1... c5 {[%clk 0:02:55.6]} 2. Nf3 {[%clk 0:03:01.1]}
2... e6 {[%clk 0:02:52.9]} 3. d4 {[%clk 0:02:59.1]} 3... cxd4 {[%clk 0:02:53]}
4. Nxd4 {[%clk 0:03:00]} 4... Nc6 {[%clk 0:02:52.4]} 5. Nc3 {[%clk 0:03:00.6]}
5... Qc7 {[%clk 0:02:52.5]} 6. Be3 {[%clk 0:02:59.3]} 6... a6 {[%clk 0:02:52.7]}
7. a3 {[%clk 0:02:59.8]} 7... b5 {[%clk 0:02:52.7]} 8. f4 {[%clk 0:02:59.5]}
8... Bb7 {[%clk 0:02:51.1]} 9. Be2 {[%clk 0:02:51.2]} 9... Bc5 {[%clk
0:02:46.8]} 10. Nxe6 {[%clk 0:02:43.8]} 10... dxe6 {[%clk 0:02:46.3]} 11. Bxc5
{[%clk 0:02:44.3]} 11... Qxf4 {[%clk 0:02:46.4]} 12. Qd6 {[%clk 0:02:39]} 12...
Qxd6 {[%clk 0:02:41.5]} 13. Bxd6 {[%clk 0:02:39.9]} 13... O-O-O {[%clk
0:02:32.8]} 14. O-O-O {[%clk 0:02:39.4]} 14... Nf6 {[%clk 0:02:22.1]} 15. Rhf1
{[%clk 0:02:36.4]} 15... Ne8 {[%clk 0:02:19.5]} 16. Bc5 {[%clk 0:02:33.5]} 16...
Rxd1+ {[%clk 0:02:16.2]} 17. Bxd1 {[%clk 0:02:32.8]} 17... Nf6 {[%clk
0:02:04.6]} 18. Bd6 {[%clk 0:02:19.7]} 18... Ne8 {[%clk 0:01:54.5]} 19. Bg3
{[%clk 0:02:17.8]} 19... f6 {[%clk 0:01:48.3]} 20. Bg4 {[%clk 0:02:17.6]} 20...
Kd7 {[%clk 0:01:48.2]} 21. Nd5 {[%clk 0:02:08.3]} 21... Nd6 {[%clk 0:01:37]} 22.
Rd1 {[%clk 0:02:02.2]} 22... Ne5 {[%clk 0:01:21.7]} 23. Bh3 {[%clk 0:01:47.6]}
23... Rd8 {[%clk 0:01:13.3]} 24. Nf4 {[%clk 0:01:44.1]} 24... Re8 {[%clk
0:01:10.2]} 25. Nd3 {[%clk 0:01:43.2]} 25... Nef7 {[%clk 0:00:42.5]} 26. Nc5+
{[%clk 0:01:43.2]} 26... Kc6 {[%clk 0:00:42.9]} 27. Nxe6 {[%clk 0:01:37.8]}
27... Nxe4 {[%clk 0:00:41.1]} 28. Nxg7 {[%clk 0:01:38]} 28... Rg8 {[%clk
0:00:33.6]} 29. Nf5 {[%clk 0:01:34.6]} 29... Nxg3 {[%clk 0:00:33.7]} 30. Ne7+
{[%clk 0:01:35]} 30... Kb6 {[%clk 0:00:32.3]} 31. Nxg8 {[%clk 0:01:35.2]} 31...
Ne4 {[%clk 0:00:29.9]} 32. Bf5 {[%clk 0:01:33.4]} 32... Nfd6 {[%clk 0:00:28]}
33. Bxh7 {[%clk 0:01:33.1]} 33... f5 {[%clk 0:00:27.2]} 34. Ne7 {[%clk
0:01:31.6]} 34... Bc8 {[%clk 0:00:27.2]} 35. h4 {[%clk 0:01:28.8]} 35... Be6
{[%clk 0:00:26.9]} 36. h5 {[%clk 0:01:28.8]} 36... Kc5 {[%clk 0:00:27]} 37. Bg6
{[%clk 0:01:27.4]} 1-0

[Event "Early-Titled-Tuesday-Blitz-February-06-2024"]
[Site "Chess.com"]
[Date "2024.02.06"]
[Round "4"]
[White "tsaruk_maks"]
[Black "bulletteemo"]
[Result "1-0"]
[WhiteElo "2760"]
[BlackElo "2537"]
[TimeControl "180+1"]
[EndTime "8:38:07 PST"]
[Termination "tsaruk_maks won on time"]

1. c4 {[%clk 0:03:00.9]} 1... g6 {[%clk 0:02:57]} 2. Nc3 {[%clk 0:03:01.8]} 2...
Bg7 {[%clk 0:02:57.6]} 3. g3 {[%clk 0:03:02.5]} 3... c5 {[%clk 0:02:55.8]} 4.
Bg2 {[%clk 0:03:03]} 4... Nc6 {[%clk 0:02:56.2]} 5. e3 {[%clk 0:03:02.8]} 5...
a6 {[%clk 0:02:53.4]} 6. Nge2 {[%clk 0:03:03.4]} 6... b5 {[%clk 0:02:53.4]} 7.
cxb5 {[%clk 0:03:02.5]} 7... axb5 {[%clk 0:02:54.3]} 8. Nxb5 {[%clk 0:03:01]}
8... Ba6 {[%clk 0:02:54.1]} 9. Nbc3 {[%clk 0:02:58.8]} 9... Nb4 {[%clk
0:02:50.7]} 10. O-O {[%clk 0:02:57.8]} 10... Nd3 {[%clk 0:02:43.6]} 11. Nf4
{[%clk 0:02:35.1]} 11... Nxf4 {[%clk 0:01:49.3]} 12. gxf4 {[%clk 0:02:36]} 12...
Bxf1 {[%clk 0:01:37.6]} 13. Bxa8 {[%clk 0:02:35.7]} 13... Qxa8 {[%clk
0:01:34.5]} 14. Qxf1 {[%clk 0:02:35.2]} 14... Nf6 {[%clk 0:01:34]} 15. Qg2
{[%clk 0:02:30.8]} 15... d5 {[%clk 0:01:17.9]} 16. d3 {[%clk 0:02:24.4]} 16...
O-O {[%clk 0:01:15.2]} 17. Bd2 {[%clk 0:02:24.2]} 17... e6 {[%clk 0:01:08.2]}
18. Rc1 {[%clk 0:02:23]} 18... Qa6 {[%clk 0:01:07.6]} 19. Qf1 {[%clk 0:02:21.7]}
19... Rb8 {[%clk 0:01:06]} 20. b3 {[%clk 0:02:20.9]} 20... Nd7 {[%clk
0:00:53.9]} 21. Na4 {[%clk 0:02:21]} 21... Qb5 {[%clk 0:00:45.5]} 22. Bc3 {[%clk
0:02:19.1]} 22... e5 {[%clk 0:00:21.2]} 23. fxe5 {[%clk 0:02:14.5]} 23... Bxe5
{[%clk 0:00:21.2]} 24. Bxe5 {[%clk 0:02:08.9]} 24... Nxe5 {[%clk 0:00:21.1]} 25.
Nxc5 {[%clk 0:02:06.2]} 25... Qb6 {[%clk 0:00:08.3]} 26. d4 {[%clk 0:02:05.2]}
26... Nf3+ {[%clk 0:00:08.3]} 27. Kh1 {[%clk 0:02:05.8]} 27... Qd6 {[%clk
0:00:07.4]} 28. Qg2 {[%clk 0:02:04.4]} 28... Nd2 {[%clk 0:00:07.1]} 29. Qg3
{[%clk 0:02:03.9]} 29... Qd8 {[%clk 0:00:07.4]} 30. Rc2 {[%clk 0:02:01.2]} 30...
Nb1 {[%clk 0:00:07]} 31. a4 {[%clk 0:01:54.4]} 31... Rc8 {[%clk 0:00:07.3]} 32.
Qg1 {[%clk 0:01:49.6]} 32... Na3 {[%clk 0:00:06.1]} 33. Ra2 {[%clk 0:01:50.1]}
33... Qf6 {[%clk 0:00:04.7]} 34. h3 {[%clk 0:01:33.9]} 34... Qf3+ {[%clk
0:00:04.4]} 35. Kh2 {[%clk 0:01:34.5]} 35... Nb1 {[%clk 0:00:03.5]} 36. Qxb1
{[%clk 0:01:34]} 1-0

[Event "Early-Titled-Tuesday-Blitz-February-06-2024"]
[Site "Chess.com"]
[Date "2024.02.06"]
[Round "4"]
[White "ansko1999"]
[Black "viniciusrego"]
[Result "1-0"]
[WhiteElo "2683"]
[BlackElo "2450"]
[TimeControl "180+1"]
[EndTime "8:38:07 PST"]
[Termination "ansko1999 won by resignation"]

1. Nf3 {[%clk 0:03:00.9]} 1... g6 {[%clk 0:02:58.7]} 2. g3 {[%clk 0:02:59.5]}
2... Bg7 {[%clk 0:02:58.5]} 3. Bg2 {[%clk 0:03:00.1]} 3... e5 {[%clk 0:02:58.3]}
4. d3 {[%clk 0:02:56.2]} 4... d5 {[%clk 0:02:54.7]} 5. O-O {[%clk 0:02:56]} 5...
c5 {[%clk 0:02:54.4]} 6. e4 {[%clk 0:02:54.5]} 6... Ne7 {[%clk 0:02:50.5]} 7.
exd5 {[%clk 0:02:42.2]} 7... Nxd5 {[%clk 0:02:51.4]} 8. Re1 {[%clk 0:02:39.8]}
8... Nc6 {[%clk 0:02:50.6]} 9. Nbd2 {[%clk 0:02:05.9]} 9... O-O {[%clk
0:02:49.5]} 10. a4 {[%clk 0:02:03.5]} 10... Re8 {[%clk 0:02:47.6]} 11. Nc4
{[%clk 0:02:01.7]} 11... h6 {[%clk 0:02:44.9]} 12. c3 {[%clk 0:01:56.9]} 12...
Nb6 {[%clk 0:02:30.6]} 13. Be3 {[%clk 0:01:51.1]} 13... Nxc4 {[%clk 0:02:21.5]}
14. dxc4 {[%clk 0:01:52]} 14... Qe7 {[%clk 0:02:15.5]} 15. a5 {[%clk 0:01:37.8]}
15... Be6 {[%clk 0:02:14.6]} 16. Nd2 {[%clk 0:01:35.9]} 16... Rad8 {[%clk
0:02:12.8]} 17. Qa4 {[%clk 0:01:35.2]} 17... f5 {[%clk 0:02:07.8]} 18. Qb5
{[%clk 0:01:31.8]} 18... e4 {[%clk 0:01:58.5]} 19. Bxc5 {[%clk 0:01:25.1]} 19...
Qc7 {[%clk 0:01:54.6]} 20. Nf1 {[%clk 0:01:19.1]} 20... Ne5 {[%clk 0:01:51.7]}
21. b3 {[%clk 0:01:09.2]} 21... Nd3 {[%clk 0:01:51.2]} 22. Bxa7 {[%clk
0:01:09.3]} 22... Nxe1 {[%clk 0:01:44.1]} 23. Bb6 {[%clk 0:01:08.5]} 23... Qe7
{[%clk 0:01:23.2]} 24. Bxd8 {[%clk 0:01:05.8]} 24... Qxd8 {[%clk 0:01:22.9]} 25.
Rxe1 {[%clk 0:01:05.5]} 25... Bxc3 {[%clk 0:01:23.3]} 26. Rc1 {[%clk 0:01:02.7]}
26... Bxa5 {[%clk 0:01:15.1]} 27. Qxb7 {[%clk 0:00:59.9]} 27... Qe7 {[%clk
0:01:09.3]} 28. Qb5 {[%clk 0:00:56.1]} 28... Bb4 {[%clk 0:01:08]} 29. Ne3 {[%clk
0:00:55.5]} 29... Rc8 {[%clk 0:01:04.7]} 30. Nd5 {[%clk 0:00:54.6]} 30... Bxd5
{[%clk 0:01:05]} 31. Qxd5+ {[%clk 0:00:55.5]} 31... Qf7 {[%clk 0:01:03.7]} 32.
Qb5 {[%clk 0:00:53.2]} 32... Qe7 {[%clk 0:01:00.6]} 33. Rd1 {[%clk 0:00:52.2]}
33... Bd6 {[%clk 0:00:50]} 34. Qd5+ {[%clk 0:00:48.3]} 1-0

[Event "Early-Titled-Tuesday-Blitz-February-06-2024"]
[Site "Chess.com"]
[Date "2024.02.06"]
[Round "4"]
[White "disciplinedbrat"]
[Black "Bodnar_Mykola"]
[Result "0-1"]
[WhiteElo "2282"]
[BlackElo "2483"]
[TimeControl "180+1"]
[EndTime "8:38:07 PST"]
[Termination "Bodnar_Mykola won by checkmate"]

1. e4 {[%clk 0:02:59.7]} 1... c5 {[%clk 0:02:59.6]} 2. Nf3 {[%clk 0:02:59.3]}
2... Nc6 {[%clk 0:02:59.6]} 3. Bc4 {[%clk 0:02:57.9]} 3... e6 {[%clk 0:02:59.3]}
4. O-O {[%clk 0:02:57.4]} 4... a6 {[%clk 0:02:59.1]} 5. Re1 {[%clk 0:02:56.7]}
5... b5 {[%clk 0:02:58.7]} 6. Bf1 {[%clk 0:02:56.6]} 6... Bb7 {[%clk 0:02:59.3]}
7. c3 {[%clk 0:02:56.8]} 7... d5 {[%clk 0:02:55.2]} 8. exd5 {[%clk 0:02:51.5]}
8... Qxd5 {[%clk 0:02:56.1]} 9. a4 {[%clk 0:02:51.1]} 9... c4 {[%clk 0:02:50.5]}
10. d4 {[%clk 0:02:50.9]} 10... Nf6 {[%clk 0:02:42.3]} 11. Nbd2 {[%clk
0:02:49.1]} 11... Be7 {[%clk 0:02:39.9]} 12. Ne5 {[%clk 0:02:49.1]} 12... O-O
{[%clk 0:02:38.2]} 13. Qf3 {[%clk 0:02:28.5]} 13... Nxe5 {[%clk 0:02:29.4]} 14.
Qxd5 {[%clk 0:02:28.5]} 14... Bxd5 {[%clk 0:02:25.2]} 15. Rxe5 {[%clk
0:02:20.8]} 15... Nd7 {[%clk 0:02:12.5]} 16. Re1 {[%clk 0:02:20.5]} 16... Nb6
{[%clk 0:02:12.3]} 17. axb5 {[%clk 0:02:16.5]} 17... axb5 {[%clk 0:02:12.2]} 18.
Rxa8 {[%clk 0:02:16.8]} 18... Rxa8 {[%clk 0:02:11.9]} 19. Ne4 {[%clk 0:02:14.4]}
19... Ra1 {[%clk 0:02:09.5]} 20. f3 {[%clk 0:02:12.1]} 20... Na4 {[%clk
0:02:08]} 21. Kf2 {[%clk 0:02:06.6]} 21... b4 {[%clk 0:02:06.3]} 22. Nd2 {[%clk
0:01:13.1]} 22... Bg5 {[%clk 0:01:53.5]} 23. Nb3 {[%clk 0:01:04.3]} 23... cxb3
{[%clk 0:01:45.3]} 24. Bxg5 {[%clk 0:01:03.6]} 24... Rxe1 {[%clk 0:01:45.5]} 25.
Kxe1 {[%clk 0:01:04.2]} 25... bxc3 {[%clk 0:01:45.6]} 26. bxc3 {[%clk
0:01:03.4]} 26... b2 {[%clk 0:01:44]} 27. Bd3 {[%clk 0:01:01.7]} 27... Nxc3
{[%clk 0:01:43.8]} 28. Kd2 {[%clk 0:00:59.2]} 28... b1=Q {[%clk 0:01:43.9]} 29.
Bxb1 {[%clk 0:00:59]} 29... Nxb1+ {[%clk 0:01:44.8]} 30. Kc2 {[%clk 0:00:54.8]}
30... Na3+ {[%clk 0:01:45.7]} 31. Kd3 {[%clk 0:00:54.2]} 31... Nc4 {[%clk
0:01:46.6]} 32. Be7 {[%clk 0:00:54]} 32... f6 {[%clk 0:01:46.6]} 33. Bc5 {[%clk
0:00:53.4]} 33... Kf7 {[%clk 0:01:46.9]} 34. Bb4 {[%clk 0:00:51.4]} 34... g5
{[%clk 0:01:45.2]} 35. Be1 {[%clk 0:00:51.4]} 35... Kg6 {[%clk 0:01:44]} 36. h3
{[%clk 0:00:48]} 36... h5 {[%clk 0:01:42.9]} 37. Bf2 {[%clk 0:00:48.4]} 37...
Nd6 {[%clk 0:01:38]} 38. Ke2 {[%clk 0:00:48]} 38... g4 {[%clk 0:01:37.5]} 39.
hxg4 {[%clk 0:00:48.2]} 39... hxg4 {[%clk 0:01:37.3]} 40. Bg3 {[%clk 0:00:42.6]}
40... Nf7 {[%clk 0:01:35.4]} 41. fxg4 {[%clk 0:00:42.6]} 41... Bxg2 {[%clk
0:01:34.3]} 42. Ke3 {[%clk 0:00:41.9]} 42... Bd5 {[%clk 0:01:34.8]} 43. Kf4
{[%clk 0:00:41.9]} 43... Nh6 {[%clk 0:01:32.9]} 44. Be1 {[%clk 0:00:39.6]} 44...
Bb3 {[%clk 0:01:32.3]} 45. Bb4 {[%clk 0:00:39.4]} 45... Bd1 {[%clk 0:01:31.6]}
46. g5 {[%clk 0:00:37.5]} 46... fxg5+ {[%clk 0:01:31.1]} 47. Ke5 {[%clk
0:00:38.1]} 47... Bb3 {[%clk 0:01:31.6]} 48. Bd2 {[%clk 0:00:37.3]} 48... Bd5
{[%clk 0:01:32.5]} 49. Be3 {[%clk 0:00:36.3]} 49... Nf7# {[%clk 0:01:32.5]} 0-1